[Event "Titled Tuesday Blitz May 16 Early 2023"]
[White "Bogaudinov, Rushan"]
[Black "Tologon tegin, Semetei"]
[WhiteFideId "4129288"]
[BlackFideId "13800574"]
[WhiteElo "1941"]
[BlackElo "2247"]
[Result "0-1"]
[Round "09"]
[TimeControl "180+2"]
[Date "2023.05.16"]
[WhiteClock "0:00:00"]
[BlackClock "0:00:06"]

1. e4 {[%clk 0:03:00]}  c5 {[%clk 0:02:57]} 2. Nf3 {[%clk 0:02:59]}  d6 {[%clk 0:02:57]} 3. Bc4 {[%clk 0:02:55]}  Nf6 {[%clk 0:02:56]} 4. e5 {[%clk 0:02:47]}  dxe5 {[%clk 0:02:55]} 5. Nxe5 {[%clk 0:02:47]}  e6 {[%clk 0:02:56]} 6. O-O {[%clk 0:02:46]}  Nbd7 {[%clk 0:02:55]} 7. f4 {[%clk 0:02:29]}  Nxe5 {[%clk 0:02:53]} 8. fxe5 {[%clk 0:02:23]}  Qd4+ {[%clk 0:02:53]} 9. Kh1 {[%clk 0:02:23]}  Qxe5 {[%clk 0:02:50]} 10. d3 {[%clk 0:02:16]}  Be7 {[%clk 0:02:46]} 11. Nc3 {[%clk 0:02:13]}  O-O {[%clk 0:02:41]} 12. Bf4 {[%clk 0:02:13]}  Qd4 {[%clk 0:02:37]} 13. Nb5 {[%clk 0:02:04]}  Qd7 {[%clk 0:02:19]} 14. Nc7 {[%clk 0:02:02]}  Rb8 {[%clk 0:02:18]} 15. Bb5 {[%clk 0:01:58]}  Qd8 {[%clk 0:02:17]} 16. Qe2 {[%clk 0:01:34]}  Bd7 {[%clk 0:02:14]} 17. Rae1 {[%clk 0:01:20]}  Rc8 {[%clk 0:02:13]} 18. Qe5 {[%clk 0:01:04]}  a6 {[%clk 0:02:09]} 19. Bc4 {[%clk 0:00:53]}  Ng4 {[%clk 0:01:30]} 20. Qh5 {[%clk 0:00:49]}  Nf6 {[%clk 0:01:30]} 21. Qe5 {[%clk 0:00:48]}  Ne8 {[%clk 0:01:19]} 22. Nxe6 {[%clk 0:00:41]}  fxe6 {[%clk 0:01:18]} 23. Bxe6+ {[%clk 0:00:42]}  Bxe6 {[%clk 0:01:18]} 24. Qxe6+ {[%clk 0:00:41]}  Rf7 {[%clk 0:01:17]} 25. Bd6 {[%clk 0:00:36]}  Nxd6 {[%clk 0:01:17]} 26. Rxf7 {[%clk 0:00:34]}  Nxf7 {[%clk 0:01:17]} 27. Qxe7 {[%clk 0:00:33]}  Qxe7 {[%clk 0:01:17]} 28. Rxe7 {[%clk 0:00:34]}  b5 {[%clk 0:01:17]} 29. Ra7 {[%clk 0:00:32]}  g6 {[%clk 0:01:06]} 30. Rxa6 {[%clk 0:00:31]}  b4 {[%clk 0:01:06]} 31. h3 {[%clk 0:00:28]}  Kg7 {[%clk 0:01:03]} 32. a4 {[%clk 0:00:26]}  h5 {[%clk 0:00:59]} 33. a5 {[%clk 0:00:22]}  h4 {[%clk 0:00:51]} 34. Kg1 {[%clk 0:00:22]}  Nh6 {[%clk 0:00:38]} 35. Kf2 {[%clk 0:00:22]}  Nf5 {[%clk 0:00:38]} 36. Rb6 {[%clk 0:00:21]}  Nd4 {[%clk 0:00:36]} 37. c3 {[%clk 0:00:21]}  Rf8+ {[%clk 0:00:35]} 38. Ke3 {[%clk 0:00:20]}  Re8+ {[%clk 0:00:35]} 39. Kf4 {[%clk 0:00:19]}  bxc3 {[%clk 0:00:29]} 40. bxc3 {[%clk 0:00:20]}  Ne2+ {[%clk 0:00:30]} 41. Kg5 {[%clk 0:00:20]}  Re5+ {[%clk 0:00:28]} 42. Kxh4 {[%clk 0:00:20]}  Nxc3 {[%clk 0:00:28]} 43. a6 {[%clk 0:00:19]}  Rd5 {[%clk 0:00:26]} 44. a7 {[%clk 0:00:16]}  Rd4+ {[%clk 0:00:26]} 45. Kg3 {[%clk 0:00:15]}  Ra4 {[%clk 0:00:27]} 46. Rb7+ {[%clk 0:00:15]}  Kh6 {[%clk 0:00:28]} 47. Rc7 {[%clk 0:00:15]}  Ne2+ {[%clk 0:00:25]} 48. Kf3 {[%clk 0:00:14]}  Nd4+ {[%clk 0:00:24]} 49. Ke3 {[%clk 0:00:13]}  Nf5+ {[%clk 0:00:18]} 50. Kd2 {[%clk 0:00:12]}  Kg5 {[%clk 0:00:16]} 51. Rxc5 {[%clk 0:00:11]}  Rxa7 {[%clk 0:00:15]} 52. g4 {[%clk 0:00:11]}  Ra2+ {[%clk 0:00:14]} 53. Kc3 {[%clk 0:00:11]}  Ra3+ {[%clk 0:00:15]} 54. Kd2 {[%clk 0:00:10]}  Ra2+ {[%clk 0:00:15]} 55. Kc1 {[%clk 0:00:11]}  Rh2 {[%clk 0:00:15]} 56. gxf5 {[%clk 0:00:10]}  gxf5 {[%clk 0:00:16]} 57. d4 {[%clk 0:00:08]}  Rxh3 {[%clk 0:00:15]} 58. d5 {[%clk 0:00:08]}  Kf6 {[%clk 0:00:13]} 59. Kd2 {[%clk 0:00:07]}  Ra3 {[%clk 0:00:09]} 60. d6 {[%clk 0:00:05]}  Ke6 {[%clk 0:00:09]} 61. d7 {[%clk 0:00:04]}  Ra8 {[%clk 0:00:08]} 62. Rc7 {[%clk 0:00:04]}  Kd6 {[%clk 0:00:06]} 63. Rb7 {[%clk 0:00:00]}  Kc6 {[%clk 0:00:06]} 0-1


[Site "https://www.chess.com"]

[Event "Titled Tuesday Blitz May 16 Early 2023"]
[White "Maxfan2008"]
[Black "Gatterer, Florian"]
[BlackFideId "811688"]
[WhiteElo "2531"]
[BlackElo "2221"]
[Result "1-0"]
[Round "09"]
[TimeControl "180+2"]
[Date "2023.05.16"]
[WhiteClock "0:00:42"]
[BlackClock "0:00:00"]

1. d4 {[%clk 0:02:54]}  Nf6 {[%clk 0:02:59]} 2. c4 {[%clk 0:02:54]}  g6 {[%clk 0:02:59]} 3. Nf3 {[%clk 0:02:54]}  Bg7 {[%clk 0:02:56]} 4. g3 {[%clk 0:02:54]}  c6 {[%clk 0:02:57]} 5. Bg2 {[%clk 0:02:53]}  d5 {[%clk 0:02:57]} 6. O-O {[%clk 0:02:54]}  O-O {[%clk 0:02:56]} 7. cxd5 {[%clk 0:02:54]}  cxd5 {[%clk 0:02:55]} 8. Qb3 {[%clk 0:02:55]}  Nc6 {[%clk 0:02:51]} 9. Nc3 {[%clk 0:02:54]}  Na5 {[%clk 0:02:42]} 10. Qa4 {[%clk 0:02:53]}  Nc6 {[%clk 0:02:40]} 11. Ne5 {[%clk 0:02:46]}  Bd7 {[%clk 0:02:14]} 12. Nxd7 {[%clk 0:02:41]}  Qxd7 {[%clk 0:02:14]} 13. Bf4 {[%clk 0:02:39]}  e6 {[%clk 0:02:06]} 14. Rac1 {[%clk 0:02:37]}  Nh5 {[%clk 0:02:05]} 15. e3 {[%clk 0:02:36]}  Nxf4 {[%clk 0:02:02]} 16. gxf4 {[%clk 0:02:37]}  a6 {[%clk 0:01:58]} 17. Qb3 {[%clk 0:02:17]}  b5 {[%clk 0:01:56]} 18. a4 {[%clk 0:02:15]}  b4 {[%clk 0:01:55]} 19. Na2 {[%clk 0:02:14]}  Rfb8 {[%clk 0:01:49]} 20. Rc5 {[%clk 0:02:11]}  Bf8 {[%clk 0:01:47]} 21. Rcc1 {[%clk 0:02:04]}  Na5 {[%clk 0:01:45]} 22. Qd3 {[%clk 0:02:02]}  Qxa4 {[%clk 0:01:39]} 23. Ra1 {[%clk 0:01:55]}  Qb3 {[%clk 0:01:09]} 24. Qe2 {[%clk 0:01:46]}  Nc4 {[%clk 0:01:07]} 25. Rfb1 {[%clk 0:01:41]}  Qa4 {[%clk 0:00:20]} 26. b3 {[%clk 0:01:40]}  Qb5 {[%clk 0:00:20]} 27. bxc4 {[%clk 0:01:39]}  dxc4 {[%clk 0:00:21]} 28. Bxa8 {[%clk 0:01:38]}  Rxa8 {[%clk 0:00:21]} 29. Qf3 {[%clk 0:01:31]}  Rb8 {[%clk 0:00:18]} 30. Nc3 {[%clk 0:01:29]}  Qb6 {[%clk 0:00:17]} 31. Ne4 {[%clk 0:01:26]}  Be7 {[%clk 0:00:13]} 32. Qe2 {[%clk 0:01:23]}  Rc8 {[%clk 0:00:12]} 33. Rc1 {[%clk 0:01:20]}  c3 {[%clk 0:00:11]} 34. Qxa6 {[%clk 0:01:17]}  Qxa6 {[%clk 0:00:07]} 35. Rxa6 {[%clk 0:01:18]}  b3 {[%clk 0:00:07]} 36. Rxc3 {[%clk 0:01:14]}  Rb8 {[%clk 0:00:05]} 37. Nd2 {[%clk 0:01:14]}  b2 {[%clk 0:00:05]} 38. Nb1 {[%clk 0:01:13]}  Bb4 {[%clk 0:00:05]} 39. Rb3 {[%clk 0:01:12]}  Rc8 {[%clk 0:00:05]} 40. Rxb4 {[%clk 0:01:03]}  Rc1+ {[%clk 0:00:04]} 41. Kg2 {[%clk 0:01:03]}  Rxb1 {[%clk 0:00:05]} 42. Rab6 {[%clk 0:01:01]}  Kg7 {[%clk 0:00:05]} 43. Rxb2 {[%clk 0:01:01]}  Rd1 {[%clk 0:00:06]} 44. Rb7 {[%clk 0:00:59]}  Rd3 {[%clk 0:00:06]} 45. Rc7 {[%clk 0:00:59]}  Rd2 {[%clk 0:00:06]} 46. Rxd2 {[%clk 0:00:55]}  h5 {[%clk 0:00:06]} 47. d5 {[%clk 0:00:54]}  Kf6 {[%clk 0:00:06]} 48. d6 {[%clk 0:00:52]}  Kf5 {[%clk 0:00:07]} 49. d7 {[%clk 0:00:51]}  Kg4 {[%clk 0:00:08]} 50. Rc5 {[%clk 0:00:47]}  f6 {[%clk 0:00:08]} 51. f3+ {[%clk 0:00:45]}  Kh4 {[%clk 0:00:07]} 52. d8=Q {[%clk 0:00:44]}  g5 {[%clk 0:00:00]} 53. Qxf6 {[%clk 0:00:42]} 1-0


[Site "https://www.chess.com"]

[Event "Titled Tuesday Blitz May 16 Early 2023"]
[White "Ginzburg, Yakov"]
[Black "Topalov, Aleksandar"]
[WhiteFideId "4157176"]
[BlackFideId "925659"]
[WhiteElo "2305"]
[BlackElo "2151"]
[Result "1-0"]
[Round "09"]
[TimeControl "180+2"]
[Date "2023.05.16"]
[WhiteClock "0:00:06"]
[BlackClock "0:00:05"]

1. d4 {[%clk 0:02:59]}  Nf6 {[%clk 0:02:59]} 2. c4 {[%clk 0:02:58]}  c5 {[%clk 0:02:58]} 3. d5 {[%clk 0:02:59]}  d6 {[%clk 0:02:59]} 4. Nf3 {[%clk 0:02:57]}  g6 {[%clk 0:02:59]} 5. Nc3 {[%clk 0:02:57]}  Bg7 {[%clk 0:02:59]} 6. e4 {[%clk 0:02:57]}  O-O {[%clk 0:02:59]} 7. h3 {[%clk 0:02:57]}  Na6 {[%clk 0:02:59]} 8. Be2 {[%clk 0:02:56]}  Nc7 {[%clk 0:02:59]} 9. O-O {[%clk 0:02:56]}  e5 {[%clk 0:02:59]} 10. Ne1 {[%clk 0:02:53]}  Nd7 {[%clk 0:02:55]} 11. Nd3 {[%clk 0:02:51]}  f5 {[%clk 0:02:53]} 12. f4 {[%clk 0:02:03]}  exf4 {[%clk 0:02:47]} 13. Bxf4 {[%clk 0:01:59]}  Ne5 {[%clk 0:02:21]} 14. Bxe5 {[%clk 0:01:54]}  Bxe5 {[%clk 0:02:19]} 15. Nxe5 {[%clk 0:01:53]}  dxe5 {[%clk 0:02:19]} 16. exf5 {[%clk 0:01:48]}  gxf5 {[%clk 0:02:19]} 17. Qd2 {[%clk 0:01:42]}  Ne8 {[%clk 0:02:15]} 18. Qe3 {[%clk 0:01:27]}  Qe7 {[%clk 0:02:12]} 19. Rae1 {[%clk 0:01:13]}  b6 {[%clk 0:02:05]} 20. d6 {[%clk 0:01:03]}  Nxd6 {[%clk 0:01:40]} 21. Bf3 {[%clk 0:00:52]}  e4 {[%clk 0:01:37]} 22. Nd5 {[%clk 0:00:51]}  Qg7 {[%clk 0:01:29]} 23. Qf4 {[%clk 0:00:50]}  exf3 {[%clk 0:01:08]} 24. Rxf3 {[%clk 0:00:50]}  Ne4 {[%clk 0:01:02]} 25. Ree3 {[%clk 0:00:26]}  Be6 {[%clk 0:00:50]} 26. Rg3 {[%clk 0:00:25]}  Nxg3 {[%clk 0:00:50]} 27. Rxg3 {[%clk 0:00:24]}  Bxd5 {[%clk 0:00:49]} 28. cxd5 {[%clk 0:00:24]}  Rad8 {[%clk 0:00:37]} 29. Qe5 {[%clk 0:00:21]}  Qxg3 {[%clk 0:00:31]} 30. Qxg3+ {[%clk 0:00:20]}  Kh8 {[%clk 0:00:31]} 31. Qe5+ {[%clk 0:00:20]}  Kg8 {[%clk 0:00:30]} 32. h4 {[%clk 0:00:15]}  Rf7 {[%clk 0:00:20]} 33. Qe6 {[%clk 0:00:14]}  Rd7 {[%clk 0:00:19]} 34. h5 {[%clk 0:00:12]}  Re7 {[%clk 0:00:19]} 35. Qc8+ {[%clk 0:00:09]}  Rf8 {[%clk 0:00:19]} 36. Qc6 {[%clk 0:00:08]}  Rd8 {[%clk 0:00:15]} 37. h6 {[%clk 0:00:08]}  Red7 {[%clk 0:00:13]} 38. Qe6+ {[%clk 0:00:08]}  Kh8 {[%clk 0:00:13]} 39. d6 {[%clk 0:00:06]}  Rb7 {[%clk 0:00:07]} 40. Qf6+ {[%clk 0:00:06]}  Kg8 {[%clk 0:00:05]} 41. Qxd8+ {[%clk 0:00:06]} 1-0


[Site "https://www.chess.com"]

[Event "Titled Tuesday Blitz May 16 Early 2023"]
[White "cristianserban1"]
[Black "Lesbekova, Assel"]
[BlackFideId "13713248"]
[WhiteElo "2519"]
[BlackElo "1805"]
[Result "1-0"]
[Round "09"]
[TimeControl "180+2"]
[Date "2023.05.16"]
[WhiteClock "0:01:25"]
[BlackClock "0:00:41"]

1. d4 {[%clk 0:03:00]}  f5 {[%clk 0:02:56]} 2. c4 {[%clk 0:03:00]}  d6 {[%clk 0:02:56]} 3. g3 {[%clk 0:02:59]}  Nf6 {[%clk 0:02:56]} 4. Bg2 {[%clk 0:02:59]}  g6 {[%clk 0:02:57]} 5. Nh3 {[%clk 0:02:50]}  Bg7 {[%clk 0:02:54]} 6. O-O {[%clk 0:02:50]}  Nc6 {[%clk 0:02:51]} 7. d5 {[%clk 0:02:49]}  Ne5 {[%clk 0:02:50]} 8. Qc2 {[%clk 0:02:47]}  O-O {[%clk 0:02:48]} 9. Nd2 {[%clk 0:02:47]}  Rb8 {[%clk 0:02:39]} 10. a4 {[%clk 0:02:45]}  e6 {[%clk 0:02:39]} 11. dxe6 {[%clk 0:02:40]}  Bxe6 {[%clk 0:02:40]} 12. Nf4 {[%clk 0:02:37]}  Bf7 {[%clk 0:02:37]} 13. b3 {[%clk 0:02:33]}  g5 {[%clk 0:02:31]} 14. Nd3 {[%clk 0:02:31]}  Nxd3 {[%clk 0:02:28]} 15. exd3 {[%clk 0:02:31]}  Ng4 {[%clk 0:02:20]} 16. Bb2 {[%clk 0:02:28]}  Bxb2 {[%clk 0:02:20]} 17. Qxb2 {[%clk 0:02:28]}  Qf6 {[%clk 0:02:21]} 18. Qxf6 {[%clk 0:02:28]}  Nxf6 {[%clk 0:02:21]} 19. Rfe1 {[%clk 0:02:25]}  Rfe8 {[%clk 0:02:14]} 20. Nf3 {[%clk 0:02:25]}  h6 {[%clk 0:02:09]} 21. Nd4 {[%clk 0:02:25]}  f4 {[%clk 0:02:01]} 22. Nb5 {[%clk 0:02:20]}  d5 {[%clk 0:01:32]} 23. Nxc7 {[%clk 0:02:17]}  Red8 {[%clk 0:01:27]} 24. gxf4 {[%clk 0:02:11]}  gxf4 {[%clk 0:01:24]} 25. Ne6 {[%clk 0:02:09]}  Bxe6 {[%clk 0:01:20]} 26. Rxe6 {[%clk 0:02:10]}  Kf7 {[%clk 0:01:18]} 27. Rae1 {[%clk 0:02:07]}  dxc4 {[%clk 0:01:19]} 28. dxc4 {[%clk 0:02:08]}  Rd7 {[%clk 0:01:19]} 29. R6e5 {[%clk 0:01:42]}  Kg6 {[%clk 0:01:16]} 30. Bh3 {[%clk 0:01:39]}  Rd2 {[%clk 0:01:11]} 31. Bf5+ {[%clk 0:01:37]}  Kf7 {[%clk 0:01:11]} 32. Re7+ {[%clk 0:01:37]}  Kg8 {[%clk 0:01:02]} 33. R1e6 {[%clk 0:01:32]}  f3 {[%clk 0:00:56]} 34. h3 {[%clk 0:01:28]}  Kh8 {[%clk 0:00:50]} 35. Rxf6 {[%clk 0:01:24]}  Rg8+ {[%clk 0:00:51]} 36. Rg6 {[%clk 0:01:24]}  Rxg6+ {[%clk 0:00:41]} 37. Bxg6 {[%clk 0:01:25]} 1-0


[Site "https://www.chess.com"]

[Event "Titled Tuesday Blitz May 16 Early 2023"]
[White "Bilan, Danila"]
[Black "Goldin, Roman"]
[WhiteFideId "24161918"]
[BlackFideId "2803860"]
[WhiteElo "2182"]
[BlackElo "2312"]
[Result "0-1"]
[Round "09"]
[TimeControl "180+2"]
[Date "2023.05.16"]
[WhiteClock "0:00:00"]
[BlackClock "0:01:38"]

1. d4 {[%clk 0:03:00]}  Nf6 {[%clk 0:02:59]} 2. Nf3 {[%clk 0:02:59]}  b5 {[%clk 0:02:59]} 3. e3 {[%clk 0:02:57]}  a6 {[%clk 0:02:59]} 4. c4 {[%clk 0:02:57]}  bxc4 {[%clk 0:02:57]} 5. Bxc4 {[%clk 0:02:58]}  e6 {[%clk 0:02:58]} 6. Nc3 {[%clk 0:02:55]}  Bb7 {[%clk 0:02:57]} 7. O-O {[%clk 0:02:47]}  d5 {[%clk 0:02:57]} 8. Bd3 {[%clk 0:02:41]}  c5 {[%clk 0:02:58]} 9. Ne5 {[%clk 0:02:32]}  Qc7 {[%clk 0:02:54]} 10. Bd2 {[%clk 0:02:03]}  Bd6 {[%clk 0:02:54]} 11. f4 {[%clk 0:01:56]}  O-O {[%clk 0:02:54]} 12. dxc5 {[%clk 0:01:51]}  Bxc5 {[%clk 0:02:53]} 13. Na4 {[%clk 0:01:26]}  Ba7 {[%clk 0:02:52]} 14. Rc1 {[%clk 0:01:22]}  Qe7 {[%clk 0:02:52]} 15. Rf3 {[%clk 0:01:10]}  Ne4 {[%clk 0:02:50]} 16. Rh3 {[%clk 0:01:05]}  f6 {[%clk 0:02:46]} 17. Nf3 {[%clk 0:00:17]}  Rc8 {[%clk 0:02:17]} 18. Rxc8+ {[%clk 0:00:17]}  Bxc8 {[%clk 0:02:17]} 19. Nd4 {[%clk 0:00:14]}  Bd7 {[%clk 0:02:14]} 20. Qh5 {[%clk 0:00:10]}  g6 {[%clk 0:02:13]} 21. Qe2 {[%clk 0:00:10]}  Nc6 {[%clk 0:02:12]} 22. Nxc6 {[%clk 0:00:08]}  Bxc6 {[%clk 0:02:12]} 23. Nc3 {[%clk 0:00:08]}  Nxd2 {[%clk 0:02:06]} 24. Qxd2 {[%clk 0:00:08]}  d4 {[%clk 0:01:57]} 25. exd4 {[%clk 0:00:08]}  Bxd4+ {[%clk 0:01:57]} 26. Kh1 {[%clk 0:00:08]}  Rd8 {[%clk 0:01:57]} 27. Qc2 {[%clk 0:00:06]}  Ba7 {[%clk 0:01:49]} 28. Rg3 {[%clk 0:00:03]}  f5 {[%clk 0:01:46]} 29. h3 {[%clk 0:00:02]}  Qc5 {[%clk 0:01:44]} 30. Qc1 {[%clk 0:00:01]}  Qf2 {[%clk 0:01:42]} 31. Kh2 {[%clk 0:00:00]}  Rxd3 {[%clk 0:01:38]} 0-1


[Site "https://www.chess.com"]

[Event "Titled Tuesday Blitz May 16 Early 2023"]
[White "Sailer, Mike"]
[Black "Yelisieiev, Yevhenii"]
[WhiteFideId "2012901"]
[BlackFideId "14139642"]
[WhiteElo "2109"]
[BlackElo "2403"]
[Result "0-1"]
[Round "09"]
[TimeControl "180+2"]
[Date "2023.05.16"]
[WhiteClock "0:00:07"]
[BlackClock "0:00:17"]

1. d4 {[%clk 0:02:27]}  d6 {[%clk 0:02:59]} 2. Nf3 {[%clk 0:02:24]}  Nf6 {[%clk 0:02:59]} 3. Bf4 {[%clk 0:02:06]}  g6 {[%clk 0:02:54]} 4. e3 {[%clk 0:02:03]}  Bg7 {[%clk 0:02:54]} 5. Be2 {[%clk 0:02:02]}  O-O {[%clk 0:02:54]} 6. O-O {[%clk 0:02:02]}  Nbd7 {[%clk 0:02:53]} 7. c4 {[%clk 0:01:58]}  b6 {[%clk 0:02:52]} 8. h3 {[%clk 0:01:56]}  Bb7 {[%clk 0:02:52]} 9. Nc3 {[%clk 0:01:48]}  Re8 {[%clk 0:02:38]} 10. Bh2 {[%clk 0:01:46]}  e5 {[%clk 0:02:37]} 11. a4 {[%clk 0:01:37]}  a5 {[%clk 0:02:20]} 12. Nb5 {[%clk 0:01:24]}  Ne4 {[%clk 0:02:06]} 13. Nd2 {[%clk 0:01:19]}  Nxd2 {[%clk 0:02:02]} 14. Qxd2 {[%clk 0:01:19]}  Qg5 {[%clk 0:02:02]} 15. d5 {[%clk 0:01:06]}  Qd8 {[%clk 0:01:41]} 16. f4 {[%clk 0:00:53]}  f5 {[%clk 0:01:18]} 17. fxe5 {[%clk 0:00:44]}  Bxe5 {[%clk 0:01:13]} 18. Nd4 {[%clk 0:00:40]}  Nc5 {[%clk 0:01:10]} 19. Bf3 {[%clk 0:00:32]}  Bxd4 {[%clk 0:00:48]} 20. Qxd4 {[%clk 0:00:28]}  Nb3 {[%clk 0:00:48]} 21. Qc3 {[%clk 0:00:25]}  Nxa1 {[%clk 0:00:48]} 22. Rxa1 {[%clk 0:00:25]}  Qe7 {[%clk 0:00:45]} 23. Bf4 {[%clk 0:00:25]}  Qg7 {[%clk 0:00:40]} 24. Qd2 {[%clk 0:00:22]}  g5 {[%clk 0:00:25]} 25. Bg3 {[%clk 0:00:20]}  Re7 {[%clk 0:00:25]} 26. Bf2 {[%clk 0:00:18]}  Rae8 {[%clk 0:00:26]} 27. Re1 {[%clk 0:00:18]}  Ba6 {[%clk 0:00:24]} 28. b3 {[%clk 0:00:18]}  Bc8 {[%clk 0:00:23]} 29. Qd3 {[%clk 0:00:17]}  f4 {[%clk 0:00:21]} 30. e4 {[%clk 0:00:16]}  Qg6 {[%clk 0:00:20]} 31. Bd4 {[%clk 0:00:15]}  h5 {[%clk 0:00:20]} 32. Bc3 {[%clk 0:00:15]}  Rh7 {[%clk 0:00:18]} 33. e5 {[%clk 0:00:07]}  Qxd3 {[%clk 0:00:17]} 0-1


[Site "https://www.chess.com"]

[Event "Titled Tuesday Blitz May 16 Early 2023"]
[White "Sharapov, Evgeny"]
[Black "Kalajzic, Ivan"]
[WhiteFideId "14103133"]
[BlackFideId "14506378"]
[WhiteElo "2367"]
[BlackElo "2203"]
[Result "1-0"]
[Round "09"]
[TimeControl "180+2"]
[Date "2023.05.16"]
[WhiteClock "0:01:51"]
[BlackClock "0:00:38"]

1. e4 {[%clk 0:02:59]}  Nc6 {[%clk 0:02:59]} 2. d4 {[%clk 0:02:59]}  d5 {[%clk 0:02:58]} 3. Nc3 {[%clk 0:02:58]}  Nf6 {[%clk 0:02:57]} 4. e5 {[%clk 0:02:58]}  Nd7 {[%clk 0:02:57]} 5. Nxd5 {[%clk 0:02:57]}  Ndb8 {[%clk 0:02:58]} 6. Nc3 {[%clk 0:02:57]}  Qxd4 {[%clk 0:02:57]} 7. Be3 {[%clk 0:02:57]}  Qxd1+ {[%clk 0:02:54]} 8. Rxd1 {[%clk 0:02:57]}  Bf5 {[%clk 0:02:53]} 9. Nd5 {[%clk 0:02:55]}  Na6 {[%clk 0:02:33]} 10. Bxa6 {[%clk 0:02:53]}  O-O-O {[%clk 0:02:34]} 11. Bd3 {[%clk 0:02:41]}  Bxd3 {[%clk 0:02:26]} 12. Rxd3 {[%clk 0:02:39]}  Nxe5 {[%clk 0:02:24]} 13. Rd1 {[%clk 0:02:37]}  Nc4 {[%clk 0:02:13]} 14. b3 {[%clk 0:02:32]}  Nb2 {[%clk 0:02:08]} 15. Rb1 {[%clk 0:02:30]}  Rxd5 {[%clk 0:02:03]} 16. Rxb2 {[%clk 0:02:30]}  e5 {[%clk 0:02:03]} 17. Nf3 {[%clk 0:02:27]}  Bb4+ {[%clk 0:02:01]} 18. Ke2 {[%clk 0:02:24]}  f6 {[%clk 0:02:00]} 19. c4 {[%clk 0:02:22]}  Rd7 {[%clk 0:01:55]} 20. Rd1 {[%clk 0:02:21]}  Rhd8 {[%clk 0:01:55]} 21. Rxd7 {[%clk 0:02:20]}  Rxd7 {[%clk 0:01:55]} 22. Rb1 {[%clk 0:02:19]}  a6 {[%clk 0:01:42]} 23. Rd1 {[%clk 0:02:19]}  b5 {[%clk 0:01:43]} 24. Rxd7 {[%clk 0:02:18]}  Kxd7 {[%clk 0:01:44]} 25. cxb5 {[%clk 0:02:18]}  axb5 {[%clk 0:01:44]} 26. a4 {[%clk 0:02:18]}  c6 {[%clk 0:01:36]} 27. Kd3 {[%clk 0:02:18]}  Ke6 {[%clk 0:01:33]} 28. Nd2 {[%clk 0:02:12]}  Kd5 {[%clk 0:01:29]} 29. Ne4 {[%clk 0:02:10]}  bxa4 {[%clk 0:01:20]} 30. bxa4 {[%clk 0:02:09]}  c5 {[%clk 0:01:20]} 31. Nc3+ {[%clk 0:02:08]}  Kc6 {[%clk 0:01:15]} 32. Kc4 {[%clk 0:02:07]}  f5 {[%clk 0:01:09]} 33. Nd5 {[%clk 0:02:04]}  Ba3 {[%clk 0:01:00]} 34. Ne7+ {[%clk 0:02:02]}  Kb6 {[%clk 0:01:00]} 35. Nxf5 {[%clk 0:02:02]}  Ka5 {[%clk 0:01:00]} 36. Nxg7 {[%clk 0:02:02]}  Kxa4 {[%clk 0:01:00]} 37. Bxc5 {[%clk 0:02:01]}  Bb2 {[%clk 0:00:58]} 38. Nf5 {[%clk 0:01:59]}  e4 {[%clk 0:00:55]} 39. Ng3 {[%clk 0:01:58]}  Be5 {[%clk 0:00:54]} 40. Nxe4 {[%clk 0:01:58]}  Bxh2 {[%clk 0:00:54]} 41. g3 {[%clk 0:01:57]}  h5 {[%clk 0:00:53]} 42. f4 {[%clk 0:01:56]}  h4 {[%clk 0:00:52]} 43. gxh4 {[%clk 0:01:55]}  Bxf4 {[%clk 0:00:52]} 44. h5 {[%clk 0:01:55]}  Ka5 {[%clk 0:00:52]} 45. Be7 {[%clk 0:01:55]}  Kb6 {[%clk 0:00:49]} 46. Bg5 {[%clk 0:01:55]}  Be5 {[%clk 0:00:48]} 47. Kd5 {[%clk 0:01:55]}  Bb2 {[%clk 0:00:44]} 48. h6 {[%clk 0:01:55]}  Kc7 {[%clk 0:00:43]} 49. h7 {[%clk 0:01:55]}  Bh8 {[%clk 0:00:34]} 50. Bf6 {[%clk 0:01:55]}  Kd7 {[%clk 0:00:35]} 51. Bxh8 {[%clk 0:01:55]}  Ke8 {[%clk 0:00:35]} 52. Be5 {[%clk 0:01:54]}  Kf7 {[%clk 0:00:36]} 53. h8=Q {[%clk 0:01:53]}  Kg6 {[%clk 0:00:37]} 54. Qg7+ {[%clk 0:01:53]}  Kf5 {[%clk 0:00:38]} 55. Qg5# {[%clk 0:01:51]} 1-0


[Site "https://www.chess.com"]

[Event "Titled Tuesday Blitz May 16 Early 2023"]
[White "Liu, Casper"]
[Black "Janaszak, Dawid"]
[WhiteFideId "1454153"]
[BlackFideId "1119206"]
[WhiteElo "2221"]
[BlackElo "2220"]
[Result "0-1"]
[Round "09"]
[TimeControl "180+2"]
[Date "2023.05.16"]
[WhiteClock "0:00:00"]
[BlackClock "0:00:19"]

1. d4 {[%clk 0:02:55]}  Nf6 {[%clk 0:02:58]} 2. Bf4 {[%clk 0:02:55]}  c5 {[%clk 0:02:57]} 3. e3 {[%clk 0:02:55]}  Nd5 {[%clk 0:02:57]} 4. Bg3 {[%clk 0:02:51]}  Qb6 {[%clk 0:02:58]} 5. Na3 {[%clk 0:02:52]}  cxd4 {[%clk 0:02:38]} 6. Nb5 {[%clk 0:02:51]}  a6 {[%clk 0:02:27]} 7. Qxd4 {[%clk 0:02:47]}  Qxd4 {[%clk 0:02:01]} 8. Nxd4 {[%clk 0:02:48]}  Nc6 {[%clk 0:02:01]} 9. O-O-O {[%clk 0:02:48]}  e6 {[%clk 0:01:56]} 10. Ngf3 {[%clk 0:02:47]}  Be7 {[%clk 0:01:52]} 11. Bc4 {[%clk 0:02:44]}  Nb6 {[%clk 0:01:50]} 12. Bd3 {[%clk 0:02:44]}  O-O {[%clk 0:01:46]} 13. a3 {[%clk 0:02:42]}  d5 {[%clk 0:01:43]} 14. Bc7 {[%clk 0:02:33]}  Na4 {[%clk 0:01:36]} 15. e4 {[%clk 0:02:27]}  Nc5 {[%clk 0:01:34]} 16. exd5 {[%clk 0:02:26]}  Nxd3+ {[%clk 0:01:34]} 17. Rxd3 {[%clk 0:02:25]}  exd5 {[%clk 0:01:35]} 18. Nxc6 {[%clk 0:02:18]}  bxc6 {[%clk 0:01:35]} 19. Ne5 {[%clk 0:02:18]}  Bf5 {[%clk 0:01:12]} 20. Rdd1 {[%clk 0:01:53]}  Rac8 {[%clk 0:01:07]} 21. Bb6 {[%clk 0:01:44]}  Rfe8 {[%clk 0:01:07]} 22. Rhe1 {[%clk 0:01:40]}  Bd6 {[%clk 0:01:06]} 23. Nf3 {[%clk 0:01:17]}  Be4 {[%clk 0:01:05]} 24. Kb1 {[%clk 0:00:16]}  f6 {[%clk 0:01:05]} 25. Nd4 {[%clk 0:00:15]}  c5 {[%clk 0:00:57]} 26. f3 {[%clk 0:00:13]}  Bg6 {[%clk 0:00:49]} 27. Ne6 {[%clk 0:00:11]}  d4 {[%clk 0:00:37]} 28. f4 {[%clk 0:00:05]}  Bf5 {[%clk 0:00:32]} 29. Nxd4 {[%clk 0:00:02]}  Rxe1 {[%clk 0:00:31]} 30. Rxe1 {[%clk 0:00:01]}  cxd4 {[%clk 0:00:32]} 31. Bxd4 {[%clk 0:00:01]}  Rxc2 {[%clk 0:00:31]} 32. Ka1 {[%clk 0:00:02]}  Rxg2 {[%clk 0:00:27]} 33. Re8+ {[%clk 0:00:01]}  Kf7 {[%clk 0:00:27]} 34. Ra8 {[%clk 0:00:02]}  Bd3 {[%clk 0:00:22]} 35. b4 {[%clk 0:00:02]}  Ke6 {[%clk 0:00:20]} 36. a4 {[%clk 0:00:02]}  Kd5 {[%clk 0:00:21]} 37. Bb2 {[%clk 0:00:01]}  Kc4 {[%clk 0:00:21]} 38. Rc8+ {[%clk 0:00:00]}  Kxb4 {[%clk 0:00:19]} 0-1


[Site "https://www.chess.com"]